fUST/lending_fUST_20250312
["ID","MTS","AMOUNT","RATE_DAILY","PERIOD"]
[356004000,1741792248910,-871.73,0.00022191,2]
[356004001,1741792248920,-17540.73,0.00022191,2]
[356004002,1741792248931,-1257.96,0.00022191,2]
[356004003,1741792248940,-500.0,0.00022191,2]
[356004004,1741792248950,-987.72,0.00022191,2]
[356004005,1741792248960,-500.0,0.00022191,2]
[356004006,1741792248969,-500.0,0.00022191,2]
[356004007,1741792248979,-500.0,0.00022191,2]
[356004008,1741792248989,-500.0,0.00022191,2]
[356004009,1741792248998,-500.0,0.00022191,2]
[356004010,1741792249007,-500.0,0.00022191,2]
[356004011,1741792249017,-500.0,0.00022191,2]
[356004012,1741792249026,-1653.89,0.00022191,2]
[356004013,1741792249035,-500.0,0.00022191,2]
[356004014,1741792249045,-500.0,0.00022191,2]
[356004015,1741792249055,-2588.87,0.00022191,2]
[356004016,1741792249065,-166.9256084,0.00022191,2]
[356004017,1741792249074,-500.0,0.00022191,2]
[356004018,1741792249084,-500.0,0.00022191,2]
[356004019,1741792249093,-500.0,0.00022191,2]
[356004020,1741792249103,-554.68,0.00022191,2]
[356004021,1741792249113,-548.36,0.00022191,2]
[356004022,1741792249122,-500.0,0.00022191,2]
[356004023,1741792249132,-500.0,0.00022191,2]
[356004024,1741792249141,-500.0,0.00022191,2]
[356004025,1741792249151,-500.0,0.00022191,2]
[356004026,1741792249161,-500.0,0.00022191,2]
[356004027,1741792249171,-5475.63,0.00022191,2]
[356004028,1741792249180,-1148.17,0.00022191,2]
[356004029,1741792249189,-1852.08,0.00022191,2]
[356004030,1741792249199,-500.0,0.00022191,2]
[356004031,1741792249208,-2754.36,0.00022191,2]
[356004032,1741792249217,-500.0,0.00022191,2]
[356004033,1741792249227,-500.0,0.00022191,2]
[356004034,1741792249236,-500.0,0.00022191,2]
[356004035,1741792249246,-1284.32,0.00022191,2]
[356004036,1741792249255,-2933.77,0.00022191,2]
[356004037,1741792249264,-1000.0,0.00022191,7]
[356004038,1741792249274,-500.0,0.00022191,2]
[356004039,1741792249283,-1749.18,0.00022191,2]
[356004040,1741792249292,-500.0,0.00022191,2]
[356004041,1741792249303,-500.0,0.00022191,2]
[356004042,1741792249312,-658.79,0.00022191,2]
[356004043,1741792249322,-398.05502889,0.00022191,2]
[356004044,1741792249334,-2372.18,0.00022191,2]
[356004045,1741792249344,-1346.07,0.00022191,2]
[356004046,1741792249353,-1076.37,0.00022191,2]
[356004047,1741792249364,-500.0,0.00022191,2]
[356004048,1741792249374,-3256.1,0.00022191,2]
[356004049,1741792249386,-533.65329777,0.00022191,2]
[356004050,1741792249395,-500.0,0.00022191,2]
[356004051,1741792249405,-500.0,0.00022191,2]
[356004052,1741792249415,-514.82135152,0.00022191,2]
[356004053,1741792249424,-500.0,0.00022191,2]
[356004054,1741792249434,-965.8,0.00022191,2]
[356004055,1741792249444,-1485.46,0.00022191,2]
[356004056,1741792249454,-1108.13,0.00022191,2]
[356004057,1741792249584,-500.0,0.00022191,2]
[356004058,1741792249598,-500.0,0.00022191,2]
[356004059,1741792249608,-878.94,0.00022191,2]
[356004060,1741792249618,-2094.2,0.00022191,2]
[356004061,1741792249627,-531.11093057,0.00022191,2]
[356004062,1741792249637,-500.0,0.00022191,2]
[356004063,1741792249647,-515.03,0.00022191,2]
[356004064,1741792249657,-500.0,0.00022191,2]
[356004065,1741792249667,-840.71,0.00022191,2]
[356004066,1741792249676,-355.54030018,0.00022191,2]
[356004067,1741792249686,-970.17,0.00022191,2]
[356004068,1741792249696,-500.0,0.00022191,2]
[356004069,1741792249706,-847.81,0.00022191,2]
[356004070,1741792249715,-1327.16,0.00022191,2]
[356004071,1741792249725,-500.0,0.00022191,2]
[356004072,1741792249734,-526.83,0.00022191,2]
[356004073,1741792249745,-500.0,0.00022191,2]
[356004074,1741792249756,-500.0,0.00022191,2]
[356004075,1741792249766,-1248.88,0.00022191,2]
[356004076,1741792249775,-500.0,0.00022191,2]
[356004077,1741792249784,-1128.61,0.00022191,2]
[356004078,1741792249794,-2266.88,0.00022191,2]
[356004079,1741792249803,-500.0,0.00022191,2]
[356004080,1741792249812,-1792.9,0.00022191,2]
[356004081,1741792249822,-500.0,0.00022191,2]
[356004082,1741792249833,-500.0,0.00022191,2]
[356004083,1741792249843,-500.0,0.00022191,2]
[356004084,1741792249853,-500.0,0.00022191,2]
[356004085,1741792249862,-500.0,0.00022191,2]
[356004086,1741792249872,-508.17,0.00022191,2]
[356004087,1741792249881,-1624.2,0.00022191,2]
[356004088,1741792249891,-500.0,0.00022191,2]
[356004089,1741792249900,-499.2198666,0.00022191,2]
[356004090,1741792249909,-500.0,0.00022191,2]
[356004091,1741792249919,-500.0,0.00022191,2]
[356004092,1741792249930,-222.53599685,0.00022191,2]
[356004093,1741792249939,-1010.75,0.00022191,2]
[356004094,1741792249948,-500.0,0.00022191,2]
[356004095,1741792249958,-500.0,0.00022191,2]
[356004096,1741792249968,-4236.3,0.00022191,2]
[356004097,1741792249978,-9999.0,0.00022191,2]
[356004098,1741792249987,-507.56381159,0.00022191,2]
[356004099,1741792249996,-500.0,0.00022191,2]
[356004100,1741792250006,-500.0,0.00022191,2]
[356004101,1741792250015,-1158.76,0.00022191,2]
[356004102,1741792250024,-500.0,0.00022191,2]
[356004103,1741792250034,-2902.09,0.00022191,2]
[356004104,1741792250043,-500.0,0.00022191,2]
[356004105,1741792250052,-500.0,0.00022191,2]
[356004106,1741792250062,-2272.0,0.0002229,2]
[356004107,1741792250071,-300.0,0.000223,10]
[356004108,1741792250081,-1171.30181343,0.00022314,3]
[356004109,1741792250093,-500.0,0.00022465,2]
[356004110,1741792250102,-500.0,0.00022465,2]
[356004111,1741792250111,-500.0,0.00022465,2]
[356004112,1741792250120,-500.0,0.00022465,2]
[356004113,1741792250129,-500.0,0.00022465,2]
[356004114,1741792250139,-500.0,0.00022465,2]
[356004115,1741792250148,-500.0,0.00022465,2]
[356004116,1741792250158,-500.0,0.00022465,2]
[356004117,1741792250167,-500.0,0.00022465,2]
[356004118,1741792250177,-500.0,0.00022465,2]
[356004119,1741792250186,-500.0,0.00022465,2]
[356004120,1741792250196,-500.0,0.00022465,2]
[356004121,1741792250205,-500.0,0.00022465,2]
[356004122,1741792250215,-500.0,0.00022465,2]
[356004123,1741792250224,-500.0,0.00022465,2]
[356004124,1741792250234,-500.0,0.00022465,2]
[356004125,1741792250243,-500.0,0.00022465,2]
[356004126,1741792250253,-500.0,0.00022465,2]
[356004127,1741792250262,-500.0,0.00022465,2]
[356004128,1741792250272,-500.0,0.00022465,2]
[356004129,1741792250281,-500.0,0.00022465,2]
[356004130,1741792250291,-1982.34,0.00022465,2]
[356004131,1741792250300,-500.0,0.00022465,2]
[356004132,1741792250310,-500.0,0.00022465,2]
[356004133,1741792250319,-500.0,0.00022465,2]
[356004134,1741792250329,-500.0,0.00022465,2]
[356004135,1741792250340,-500.0,0.00022465,2]
[356004136,1741792250350,-500.0,0.00022465,2]
[356004137,1741792250360,-500.0,0.00022465,2]
[356004138,1741792250371,-500.0,0.00022465,2]
[356004139,1741792250380,-500.0,0.00022465,2]
[356004140,1741792250389,-616.62,0.00022465,2]
[356004141,1741792250399,-500.0,0.00022465,2]
[356004142,1741792250408,-500.0,0.00022465,2]
[356004143,1741792250419,-649.94134251,0.00022465,2]
[356004144,1741792250429,-730.05,0.00022465,2]
[356004145,1741792250439,-500.0,0.00022465,2]
[356004146,1741792250448,-628.32,0.00022465,2]
[356004147,1741792250458,-500.0,0.00022465,2]
[356004148,1741792250468,-500.0,0.00022465,2]
[356004149,1741792250478,-1232.1,0.00022465,2]
[356004150,1741792250488,-500.0,0.00022465,2]
[356004151,1741792250497,-1096.39,0.00022465,2]
[356004152,1741792250507,-500.0,0.00022465,2]
[356004153,1741792250516,-500.0,0.00022465,2]
[356004154,1741792250525,-500.0,0.00022465,2]
[356004155,1741792250535,-500.0,0.00022465,2]
[356004156,1741792250544,-500.0,0.00022465,2]
[356004157,1741792250554,-500.0,0.00022465,2]
[356004158,1741792250563,-500.0,0.00022465,2]
[356004159,1741792250573,-500.0,0.00022465,2]
[356004160,1741792250582,-500.0,0.00022465,2]
[356004161,1741792250594,-500.0,0.00022465,2]
[356004162,1741792250603,-635.14421015,0.00022465,2]
[356004163,1741792250613,-500.0,0.00022465,2]
[356004164,1741792250622,-1794.98,0.00022465,2]
[356004165,1741792250632,-500.0,0.00022465,2]
[356004166,1741792250641,-546.24,0.00022465,2]
[356004167,1741792250651,-1009.6,0.00022465,2]
[356004168,1741792250660,-500.0,0.00022465,2]
[356004169,1741792250670,-1581.81,0.00022465,2]
[356004170,1741792250679,-500.0,0.00022465,2]
[356004171,1741792250689,-500.0,0.00022465,2]
[356004172,1741792250699,-952.89,0.00022465,2]
[356004173,1741792250708,-500.0,0.00022465,2]
[356004174,1741792250718,-505.55,0.00022465,2]
[356004175,1741792250727,-500.0,0.00022465,2]
[356004176,1741792250736,-500.0,0.00022465,2]
[356004177,1741792250750,-548.05,0.00022465,2]
[356004178,1741792250760,-720.36,0.00022465,2]
[356004179,1741792250769,-500.0,0.00022465,2]
[356004180,1741792250779,-200.8920874,0.00022465,2]
[356004181,1741792250790,-500.0,0.00022465,2]
[356004182,1741792250799,-500.0,0.00022465,2]
[356004183,1741792250809,-500.0,0.00022465,2]
[356004184,1741792250819,-500.0,0.00022465,2]
[356004185,1741792250830,-500.0,0.00022465,2]
[356004186,1741792250842,-500.0,0.00022465,2]
[356004187,1741792250852,-500.0,0.00022465,2]
[356004188,1741792250861,-500.0,0.00022465,2]
[356004189,1741792250871,-535.6139155,0.00022465,2]
[356004190,1741792250881,-500.0,0.00022465,2]
[356004191,1741792250890,-961.42,0.00022465,2]
[356004192,1741792250899,-500.0,0.00022465,2]
[356004193,1741792250909,-517.63,0.00022465,2]
[356004194,1741792250918,-500.0,0.00022465,2]
[356004195,1741792250927,-500.0,0.00022465,2]
[356004196,1741792250937,-805.22,0.00022465,2]
[356004197,1741792250947,-500.0,0.00022465,2]
[356004198,1741792250957,-500.0,0.00022465,2]
[356004199,1741792250966,-500.0,0.00022465,2]
[356004200,1741792250976,-748.27,0.00022465,2]
[356004201,1741792250985,-500.0,0.00022465,2]
[356004202,1741792250994,-1222.12,0.00022465,2]
[356004203,1741792251004,-500.0,0.00022465,2]
[356004204,1741792251013,-500.0,0.00022465,2]
[356004205,1741792251023,-1516.93,0.00022465,2]
[356004206,1741792251032,-500.0,0.00022465,2]
[356004207,1741792251042,-592.55,0.00022465,2]
[356004208,1741792251052,-574.87853054,0.00022465,2]
[356004209,1741792251062,-500.0,0.00022465,2]
[356004210,1741792251072,-1250.76,0.00022465,2]
[356004211,1741792251082,-386.08055628,0.00022465,2]
[356004212,1741792251093,-500.0,0.00022465,2]
[356004213,1741792251103,-500.0,0.00022465,2]
[356004214,1741792251112,-500.0,0.00022465,2]
[356004215,1741792251122,-2217.0,0.00022465,2]
[356004216,1741792251131,-500.0,0.00022465,2]
[356004217,1741792251140,-649.76,0.00022465,2]
[356004218,1741792251150,-500.0,0.00022465,2]
[356004219,1741792251160,-1047.2,0.00022465,2]
[356004220,1741792251171,-500.0,0.00022465,2]
[356004221,1741792251180,-500.0,0.00022465,2]
[356004222,1741792251190,-500.0,0.00022465,2]
[356004223,1741792251199,-500.0,0.00022465,2]
[356004224,1741792251209,-500.0,0.00022465,2]
[356004225,1741792251218,-1754.51,0.00022465,2]
[356004226,1741792251228,-500.0,0.00022465,2]
[356004227,1741792251237,-500.0,0.00022465,2]
[356004228,1741792251247,-500.0,0.00022465,2]
[356004229,1741792251256,-500.0,0.00022465,2]
[356004230,1741792251265,-500.0,0.00022465,2]
[356004231,1741792251275,-1167.74,0.00022465,2]
[356004232,1741792251284,-500.0,0.00022465,2]
[356004233,1741792251294,-848.2,0.00022465,2]
[356004234,1741792251303,-500.0,0.00022465,2]
[356004235,1741792251313,-500.0,0.00022465,2]
[356004236,1741792251322,-500.0,0.00022465,2]
[356004237,1741792251332,-500.0,0.00022465,2]
[356004238,1741792251344,-500.0,0.00022465,2]
[356004239,1741792251354,-500.0,0.00022465,2]
[356004240,1741792251364,-1256.66,0.00022465,2]
[356004241,1741792251374,-500.0,0.00022465,2]
[356004242,1741792251384,-1791.25,0.00022465,2]
[356004243,1741792251393,-968.83,0.00022465,2]
[356004244,1741792251403,-500.0,0.00022465,2]
[356004245,1741792251412,-500.0,0.00022465,2]
[356004246,1741792251422,-970.37,0.00022465,2]
[356004247,1741792251431,-500.0,0.00022465,2]
[356004248,1741792251440,-543.68,0.00022465,2]
[356004249,1741792251450,-500.0,0.00022465,2]
[356004250,1741792251459,-578.52,0.00022465,5]
[356004251,1741792251468,-665.39,0.00022465,2]
[356004252,1741792251477,-500.0,0.00022465,2]
[356004253,1741792251487,-500.0,0.00022465,2]
[356004254,1741792251496,-500.49,0.00022465,2]
[356004255,1741792251505,-500.0,0.00022465,2]
[356004256,1741792251515,-500.0,0.00022465,2]
[356004257,1741792251525,-250.23115263,0.00022465,2]
[356004258,1741792251535,-1310.88,0.00022465,2]
[356004259,1741792251545,-500.0,0.00022465,2]
[356004260,1741792251556,-9090.63,0.00022465,2]
[356004261,1741792251566,-689.9,0.00022465,2]
[356004262,1741792251575,-503.57799636,0.00022465,2]
[356004263,1741792251584,-570.59,0.00022465,2]
[356004264,1741792251594,-500.0,0.00022465,2]
[356004265,1741792251603,-1827.46,0.00022465,2]
[356004266,1741792251613,-500.0,0.00022465,2]
[356004267,1741792251622,-500.0,0.00022465,2]
[356004268,1741792251632,-500.0,0.00022465,2]
[356004269,1741792251641,-1019.17,0.00022465,2]
[356004270,1741792251655,-533.09728778,0.00022465,2]
[356004271,1741792251665,-799.92,0.00022465,2]
[356004272,1741792251675,-1095.79,0.00022465,2]
[356004273,1741792251684,-632.18534296,0.00022465,2]
[356004274,1741792251693,-500.0,0.00022465,2]
[356004275,1741792251703,-2062.19,0.00022465,2]
[356004276,1741792251712,-500.0,0.00022465,2]
[356004277,1741792251722,-1431.16,0.00022465,2]
[356004278,1741792251731,-500.0,0.00022465,2]
[356004279,1741792251740,-500.0,0.00022465,2]
[356004280,1741792251752,-913.6,0.00022465,2]
[356004281,1741792251761,-500.0,0.00022465,2]
[356004282,1741792251886,-507.7395979,0.00022465,2]
[356004283,1741792251896,-500.0,0.00022465,2]
[356004284,1741792251906,-500.0,0.00022465,2]
[356004285,1741792251915,-500.0,0.00022465,2]
[356004286,1741792251924,-500.0,0.00022465,2]
[356004287,1741792251934,-1787.17,0.00022465,2]
[356004288,1741792251943,-825.75,0.00022465,2]
[356004289,1741792251953,-500.0,0.00022465,2]
[356004290,1741792251962,-500.0,0.00022465,2]
[356004291,1741792251971,-500.0,0.00022465,2]
[356004292,1741792251981,-500.0,0.00022465,2]
[356004293,1741792251990,-516.68,0.00022465,2]
[356004294,1741792251999,-500.0,0.00022465,2]
[356004295,1741792252009,-1187.34,0.00022465,2]
[356004296,1741792252019,-500.0,0.00022465,2]
[356004297,1741792252029,-500.0,0.00022465,2]
[356004298,1741792252039,-500.0,0.00022465,2]
[356004299,1741792252048,-729.37,0.00022465,2]
[356004300,1741792252057,-500.0,0.00022465,2]
[356004301,1741792252067,-1008.35,0.00022465,2]
[356004302,1741792252076,-969.36,0.00022465,2]
[356004303,1741792252086,-500.0,0.00022465,2]
[356004304,1741792252095,-505.80106672,0.00022465,2]
[356004305,1741792252104,-500.0,0.00022465,2]
[356004306,1741792252113,-505.13280972,0.00022465,2]
[356004307,1741792252123,-500.0,0.00022465,2]
[356004308,1741792252132,-1564.59,0.00022465,2]
[356004309,1741792252141,-693.24,0.00022465,2]
[356004310,1741792252150,-500.0,0.00022465,2]
[356004311,1741792252159,-1314.1,0.00022465,2]
[356004312,1741792252168,-500.0,0.00022465,2]
[356004313,1741792252177,-500.0,0.00022465,2]
[356004314,1741792252187,-1096.4,0.00022465,2]
[356004315,1741792252196,-500.0,0.00022465,2]
[356004316,1741792252205,-500.0,0.00022465,2]
[356004317,1741792252214,-1528.25,0.00022465,2]
[356004318,1741792252223,-1303.06,0.00022465,2]
[356004319,1741792252232,-500.0,0.00022465,2]
[356004320,1741792252241,-500.0,0.00022465,2]
[356004321,1741792252250,-500.0,0.00022465,2]
[356004322,1741792252259,-568.06,0.00022465,2]
[356004323,1741792252268,-500.0,0.00022465,2]
[356004324,1741792252277,-500.0,0.00022465,2]
[356004325,1741792252287,-2094.41,0.00022465,2]
[356004326,1741792252295,-1765.23,0.00022465,2]
[356004327,1741792252304,-500.0,0.00022465,2]
[356004328,1741792252313,-500.0,0.00022465,2]
[356004329,1741792252322,-500.0,0.00022465,2]
[356004330,1741792252331,-1840.33,0.00022465,2]
[356004331,1741792252341,-500.0,0.00022465,2]
[356004332,1741792252351,-500.0,0.00022465,2]
[356004333,1741792252360,-522.32441203,0.00022465,2]
[356004334,1741792252370,-500.0,0.00022465,2]
[356004335,1741792252379,-1707.8,0.00022465,2]
[356004336,1741792252388,-17448.18,0.00022465,2]
[356004337,1741792252398,-500.0,0.00022465,2]
[356004338,1741792252407,-500.0,0.00022465,2]
[356004339,1741792252416,-500.0,0.00022465,2]
[356004340,1741792252425,-500.0,0.00022465,2]
[356004341,1741792252434,-871.73,0.00022465,2]
[356004342,1741792252443,-17540.73,0.00022465,2]
[356004343,1741792252452,-1257.96,0.00022465,2]
[356004344,1741792252462,-500.0,0.00022465,2]
[356004345,1741792252472,-987.72,0.00022465,2]
[356004346,1741792252481,-500.0,0.00022465,2]
[356004347,1741792252490,-500.0,0.00022465,2]
[356004348,1741792252499,-244.09021737,0.00022465,2]
[356004349,1741792252508,-500.0,0.00022465,2]
[356004350,1741792252518,-500.0,0.00022465,2]
[356004351,1741792252527,-500.0,0.00022465,2]
[356004352,1741792252536,-500.0,0.00022465,2]
[356004353,1741792252545,-1653.89,0.00022465,2]
[356004354,1741792252555,-500.0,0.00022465,2]
[356004355,1741792252564,-500.0,0.00022465,2]
[356004356,1741792252574,-2588.87,0.00022465,2]
[356004357,1741792252583,-500.0,0.00022465,2]
[356004358,1741792252593,-500.0,0.00022465,2]
[356004359,1741792252603,-500.0,0.00022465,2]
[356004360,1741792252612,-554.68,0.00022465,2]
[356004361,1741792252622,-548.36,0.00022465,2]
[356004362,1741792252631,-500.0,0.00022465,2]
[356004363,1741792252640,-500.0,0.00022465,2]
[356004364,1741792252650,-500.0,0.00022465,2]
[356004365,1741792252659,-500.0,0.00022465,2]
[356004366,1741792252668,-500.0,0.00022465,2]
[356004367,1741792252678,-5475.63,0.00022465,2]
[356004368,1741792252687,-1148.17,0.00022465,2]
[356004369,1741792252696,-1852.08,0.00022465,2]
[356004370,1741792252706,-500.0,0.00022465,2]
[356004371,1741792252716,-2754.36,0.00022465,2]
[356004372,1741792252725,-500.0,0.00022465,2]
[356004373,1741792252735,-500.0,0.00022465,2]
[356004374,1741792252748,-500.0,0.00022465,2]
[356004375,1741792252758,-1284.32,0.00022465,2]
[356004376,1741792252767,-2933.77,0.00022465,2]
[356004377,1741792252776,-1000.0,0.00022465,7]
[356004378,1741792252786,-500.0,0.00022465,2]
[356004379,1741792252795,-1749.18,0.00022465,2]
[356004380,1741792252804,-500.0,0.00022465,2]
[356004381,1741792252813,-500.0,0.00022465,2]
[356004382,1741792252823,-658.79,0.00022465,2]
[356004383,1741792252832,-2372.18,0.00022465,2]
[356004384,1741792252842,-1346.07,0.00022465,2]
[356004385,1741792252851,-1076.37,0.00022465,2]
[356004386,1741792252860,-500.0,0.00022465,2]
[356004387,1741792252870,-3256.1,0.00022465,2]
[356004388,1741792252879,-500.0,0.00022465,2]
[356004389,1741792252888,-500.0,0.00022465,2]
[356004390,1741792252898,-500.0,0.00022465,2]
[356004391,1741792252907,-1485.46,0.00022465,2]
[356004392,1741792252916,-965.8,0.00022465,2]
[356004393,1741792252925,-1108.13,0.00022465,2]
[356004394,1741792252935,-500.0,0.00022465,2]
[356004395,1741792252944,-500.0,0.00022465,2]
[356004396,1741792252954,-878.94,0.00022465,2]
[356004397,1741792252963,-2094.2,0.00022465,2]
[356004398,1741792252973,-500.0,0.00022465,2]
[356004399,1741792252983,-515.03,0.00022465,2]
[356004400,1741792252992,-434.81598272,0.00022465,2]
[356004401,1741792253002,-840.71,0.00022465,2]
[356004402,1741792253011,-970.17,0.00022465,2]
[356004403,1741792253021,-500.0,0.00022465,2]
[356004404,1741792253030,-847.81,0.00022465,2]
[356004405,1741792253040,-1327.16,0.00022465,2]
[356004406,1741792253049,-500.0,0.00022465,2]
[356004407,1741792253059,-526.83,0.00022465,2]
[356004408,1741792253069,-500.0,0.00022465,2]
[356004409,1741792253079,-500.0,0.00022465,2]
[356004410,1741792253090,-1248.88,0.00022465,2]
[356004411,1741792253099,-500.0,0.00022465,2]
[356004412,1741792253109,-1128.61,0.00022465,2]
[356004413,1741792253118,-2266.88,0.00022465,2]
[356004414,1741792253127,-500.0,0.00022465,2]
[356004415,1741792253137,-1792.9,0.00022465,2]
[356004416,1741792253146,-500.0,0.00022465,2]
[356004417,1741792253155,-500.0,0.00022465,2]
[356004418,1741792253165,-500.0,0.00022465,2]
[356004419,1741792253174,-500.0,0.00022465,2]
[356004420,1741792253183,-500.0,0.00022465,2]
[356004421,1741792253192,-508.17,0.00022465,2]
[356004422,1741792253202,-1624.2,0.00022465,2]
[356004423,1741792253211,-500.0,0.00022465,2]
[356004424,1741792253220,-500.0,0.00022465,2]
[356004425,1741792253229,-500.0,0.00022465,2]
[356004426,1741792253239,-1010.75,0.00022465,2]
[356004427,1741792253248,-500.0,0.00022465,2]
[356004428,1741792253258,-500.0,0.00022465,2]
[356004429,1741792253267,-4236.3,0.00022465,2]
[356004430,1741792253277,-9999.0,0.00022465,2]
[356004431,1741792253286,-500.0,0.00022465,2]
[356004432,1741792253295,-505.34826254,0.00022465,2]
[356004433,1741792253305,-1158.76,0.00022465,2]
[356004434,1741792253314,-500.0,0.00022465,2]
[356004435,1741792253324,-2902.09,0.00022465,2]
[356004436,1741792253334,-500.0,0.00022465,2]
[356004437,1741792253343,-500.0,0.00022465,2]
[356004438,1741792253353,-150.0,0.00022473,2]
[356004439,1741792253364,-268.11821069,0.00022552,2]
[356004440,1741792253374,-500.0,0.00022739,2]
[356004441,1741792253383,-500.0,0.00022739,2]
[356004442,1741792253393,-500.0,0.00022739,2]
[356004443,1741792253403,-500.0,0.00022739,2]
[356004444,1741792253412,-500.0,0.00022739,2]
[356004445,1741792253422,-604.62122039,0.00022739,2]
[356004446,1741792253432,-500.0,0.00022739,2]
[356004447,1741792253441,-500.0,0.00022739,2]
[356004448,1741792253452,-500.0,0.00022739,2]
[356004449,1741792253462,-500.0,0.00022739,2]
[356004450,1741792253472,-500.0,0.00022739,2]
[356004451,1741792253481,-500.0,0.00022739,2]
[356004452,1741792253490,-500.0,0.00022739,2]
[356004453,1741792253500,-500.0,0.00022739,2]
[356004454,1741792253510,-500.0,0.00022739,2]
[356004455,1741792253519,-500.0,0.00022739,2]
[356004456,1741792253528,-500.0,0.00022739,2]
[356004457,1741792253538,-500.0,0.00022739,2]
[356004458,1741792253547,-500.0,0.00022739,2]
[356004459,1741792253556,-500.0,0.00022739,2]
[356004460,1741792253566,-317.80668087,0.00022739,2]
[356004461,1741792253576,-1982.34,0.00022739,2]
[356004462,1741792253588,-500.0,0.00022739,2]
[356004463,1741792253598,-500.0,0.00022739,2]
[356004464,1741792253607,-500.0,0.00022739,2]
[356004465,1741792253618,-500.0,0.00022739,2]
[356004466,1741792253628,-500.0,0.00022739,2]
[356004467,1741792253638,-500.0,0.00022739,2]
[356004468,1741792253648,-500.0,0.00022739,2]
[356004469,1741792253658,-500.0,0.00022739,2]
[356004470,1741792253668,-500.0,0.00022739,2]
[356004471,1741792253679,-616.62,0.00022739,2]
[356004472,1741792253688,-500.0,0.00022739,2]
[356004473,1741792253698,-500.0,0.00022739,2]
[356004474,1741792253707,-730.05,0.00022739,2]
[356004475,1741792253717,-500.0,0.00022739,2]
[356004476,1741792253727,-628.32,0.00022739,2]
[356004477,1741792253736,-500.0,0.00022739,2]
[356004478,1741792253747,-500.0,0.00022739,2]
[356004479,1741792253760,-1232.1,0.00022739,2]
[356004480,1741792253769,-500.0,0.00022739,2]
[356004481,1741792253779,-1096.39,0.00022739,2]
[356004482,1741792253789,-500.0,0.00022739,2]
[356004483,1741792253798,-500.0,0.00022739,2]
[356004484,1741792253807,-500.0,0.00022739,2]
[356004485,1741792253817,-500.0,0.00022739,2]
[356004486,1741792253826,-500.0,0.00022739,2]
[356004487,1741792253838,-500.0,0.00022739,2]
[356004488,1741792253847,-500.0,0.00022739,2]
[356004489,1741792253857,-500.0,0.00022739,2]
[356004490,1741792253978,-500.0,0.00022739,2]
[356004491,1741792253988,-500.0,0.00022739,2]
[356004492,1741792253998,-500.0,0.00022739,2]
[356004493,1741792254009,-1794.98,0.00022739,2]
[356004494,1741792254018,-546.24,0.00022739,2]
[356004495,1741792254028,-500.0,0.00022739,2]
[356004496,1741792254037,-1009.6,0.00022739,2]
[356004497,1741792254047,-500.0,0.00022739,2]
[356004498,1741792254056,-1581.81,0.00022739,2]
[356004499,1741792254065,-500.0,0.00022739,2]